Workbook

Sheet Disclaimer
D10: Disclaimer
D12: This Design Calculation Spreadsheet is provided "as-is" without warranty of any kind. The Montana Department of Transportation makes no representations or warranties whatsoever with respect to the accuracy or completeness of this tool and assumes no responsibility for the suitability of this tool for a particular purpose; and MDT will not be liable for any damages incurred as a result of errors in this tool. By selecting Accept, you are agreeing to these terms and conditions.
K22: WARNING: For the tool to work properly, please make sure you click on "Enable Content/Macros" if the security warning appears.

Sheet Calculations (hidden)
P1: Vertical Curve K-value Calcs.
B2: Sum | N2: 45 | O2: K | P2: Grade | Q2: A | R2: L | S2: K | U2: Sum
D3: Subtract | F3: Average | H3: Interpolation Calc. | L3: Grade Calcs. | N3: Crest | O3: 61 | P3: 0.5
D4: 3427 | F4: 13 | H4: Begin | I4: 19224.35 | J4: 0 | L4: Sta Start | M4: 14.3 | N4: Sag | O4: 79 | Q4: =ABS(P5-P3) -> 1.503 | R4: 1400 | S4: =R4/Q4 -> 931.4703925 | T4: C
D5: 1832 | F5: 13.7 | H5: Middle | I5: 19249.82 | J5: =((I5-I4)*(J6-J4)/(I6-I4))+J4 -> 1.448311157 | L5: Elev Start | M5: 2945.75 | P5: -1.003
D6: =D4-D5 -> 1595 | F6: =(F4+F5)/2 -> 13.35 | H6: End | I6: 19312.28 | J6: 5 | L6: Sta End | M6: 40.32 | N6: 45 (3%) | Q6: =ABS(P7-P5) -> 3.674 | R6: 500 | S6: =R6/Q6 -> 136.0914535 | T6: S
L7: Elev End | M7: 2938.36 | N7: Crest | O7: 67 | P7: 2.671
D8: Multiply | H8: Divide | L8: Grade | M8: =(M7-M5)/(M6-M4) -> -0.2840122982 | N8: Sag | O8: 83 | Q8: =ABS(P9-P7) -> 5.479 | R8: 840 | S8: =R8/Q8 -> 153.3126483 | T8: C
D9: 28 | E9: 5 | F9: 7855 | H9: 3400 | I9: 560 | P9: -2.808
D10: 0.2 | E10: 0.062 | F10: 0.014 | H10: 9 | I10: 27 | N10: 60 | Q10: =ABS(P11-P9) -> 3.616 | R10: 500 | S10: =R10/Q10 -> 138.2743363 | T10: S
D11: =D9*D10 -> 5.6 | E11: =E9*E10 -> 0.31 | F11: =F9*F10 -> 109.97 | H11: =H9/H10 -> 377.7777778 | I11: =I9/I10 -> 20.74074074 | N11: Crest | O11: 151 | P11: 0.808
K12: PGL Vertical Curve Elev. Calcs. | N12: Sag | O12: 136 | Q12: =ABS(P13-P11) -> 0.806 | R12: 500 | S12: =R12/Q12 -> 620.3473945 | T12: S
K13: VPC Sta | L13: 40582 | P13: 1.614
D14: Typ. Sect. Quantity Calcs | K14: VPC Elev | L14: 2953.84 | N14: 60 (3%) | Q14: =ABS(P15-P13) -> 3.384 | R14: 450 | S14: =R14/Q14 -> 132.9787234 | T14: S
E15: English | K15: G1 (%) | L15: 2 | N15: Crest | O15: 166 | P15: -1.77
D16: Plant Mix | E16: 20.7 | F16: =E16*3855/2000 -> 39.89925 | G16: % AC | K16: G2 (%) | L16: -1.717 | N16: Sag | O16: 144 | Q16: =ABS(P17-P15) -> 5.55 | R16: 700 | S16: =R16/Q16 -> 126.1261261 | T16: C
D17: AC | E17: --- | F17: =ROUND(F16,1)*(G17/100) -> 2.4738 | G17: 6.2 | K17: L | L17: 316 | P17: 3.78
D18: Seal | E18: 289 | F18: =E18*0.42*8.5/2000 -> 0.515865 | K18: X Sta | L18: 40625 | N18: @SG | Q18: =ABS(P19-P17) -> 3.47 | R18: 460 | S18: =R18/Q18 -> 132.5648415 | T18: S
D19: Fog Seal | E19: 0 | F19: =E19*0.075 -> 0 | K19: X | L19: =L18-L13 -> 43 | M19: @ SG | N19: w/ super | P19: 0.31
K20: PGL - X Elev | L20: =(L19^2)*((L16-L15)/(200*L17))+(L15/100)*L19+L14 -> 2954.591254 | M20: =L20-M23 -> 2954.451254 | N20: =L20-M23+M22*((N24/100)-0.02) -> 2954.451254 | Q20: =ABS(P21-P19) -> 1.3 | R20: 400 | S20: =R20/Q20 -> 307.6923077 | T20: C
D21: Surfacing Quantities Calcs | P21: 1.61
D22: Length | E22: Typ 1 Qtys | F22: Typ 2 Qtys | G22: Qtys | H22: Avg Qtys | L22: Super Width | M22: 12 | Q22: =ABS(P23-P21) -> 3.44 | R22: 550 | S22: 210 | T22: S
D23: 14.7699 | E23: 267 | F23: 311 | G23: =$D$23*E23 -> 3943.5633 | H23: =$D$23*((E23+F23)/2) -> 4268.5011 | I23: Cover | L23: Section Depth | M23: 0.14 | P23: -1.83
E24: 59.9 | F24: 39.9 | G24: 884.71701 | H24: 737.01801 | I24: Plant Mix | L24: Superelevation (%) | N24: 2 | Q24: =ABS(P25-P23) -> 4.62 | R24: 650 | S24: =R24/Q24 -> 140.6926407 | T24: C
E25: 0 | F25: 0 | G25: 0 | H25: 0 | I25: CAC | P25: 2.79
E26: 0 | F26: 0 | G26: 0 | H26: 0 | I26: Spec. Borrow | K26: PGL Elev. Calcs on Tangents | Q26: =ABS(P27-P25) -> 2.49 | R26: 400 | S26: =R26/Q26 -> 160.6425703 | T26: S
E27: 0 | F27: 0 | G27: 0 | H27: 0 | I27: Shldr Gravel | K27: VPI Sta | L27: 40090 | P27: 0.3
E28: 1.24 | F28: 1.26 | G28: 18.314676 | H28: 18.462375 | I28: AC | K28: VPI Elev | L28: 2944 | Q28: =ABS(P29-P27) -> 2.78 | R28: 400 | S28: =R28/Q28 -> 143.8848921 | T28: C
E29: 0.72 | F29: 0.8 | G29: 10.634328 | H29: 11.225124 | I29: Seal | K29: G (%) | L29: 2 | P29: 3.08
E30: 16 | F30: 16 | G30: 236.3184 | H30: 236.3184 | I30: Tack | K30: X Sta | L30: 40582 | N30: @SG | Q30: =ABS(P31-P29) -> 3.38 | R30: 800 | S30: =R30/Q30 -> 236.6863905 | T30: S
E31: 0 | F31: 0 | G31: 0 | H31: 0 | I31: Fog Seal | K31: X | L31: =L30-L27 -> 492 | M31: @ SG | N31: w/ super | P31: -0.3
B32: =SUM(B3:B31) -> 0 | E32: 0 | F32: 0 | G32: 0 | H32: 0 | I32: Agg. Treat | K32: PGL - X Elev | L32: =L28+L31*(L29/100) -> 2953.84 | M32: =L32-M23 -> 2953.7 | N32: =L32-M23+M22*((N24/100)-0.02) -> 2953.7 | Q32: =ABS(P33-P31) -> 0.6 | R32: 200 | S32: =R32/Q32 -> 333.3333333 | T32: C | U32: =SUM(U3:U31) -> 0
E33: 311 | F33: 327 | G33: 4593.4389 | H33: 4711.5981 | I33: Cold Mill | P33: 0.3
L34: =D6 -> 1595 | Q34: =ABS(P35-P33) -> 3.13 | R34: 500 | S34: =R34/Q34 -> 159.7444089 | T34: S
B35: From Sta | C35: To Sta | D35: Dist | P35: -2.83
B36: 31933.33 | C36: 37950 | D36: =C36-B36 -> 6016.67 | F36: KPH | G36: MPH | I36: 53.808 | J36: N of Pt 1 | Q36: =ABS(P37-P35) -> 2.69 | R36: 350 | S36: =R36/Q36 -> 130.1115242 | T36: S
B37: =C36 -> 37950 | C37: 38050 | D37: 100 | F37: 90 | G37: =CONVERT(F37,"m","mi")*1000 -> 55.9234073 | I37: 304.185 | J37: E of Pt 1 | P37: -0.14
B38: =C37 -> 38050 | C38: 38084 | D38: 34
B39: =C38 -> 38084 | C39: 38184 | D39: 100 | F39: =CONVERT(G39,"mi","m")/1000 -> 96.56064 | G39: 60 | I39: 820.957 | J39: N of Pt 2 | T39: Interpolation Calc.
B40: 38184 | C40: 39660.99 | D40: 1476.99 | I40: 262.071 | J40: E of Pt 2 | P40: Spiral Curve Formulas | T40: Begin | U40: 1935 | V40: 45
B41: 39660.99 | C41: 39775 | D41: 114.01 | F41: M | G41: FT | I41: =((I39-I36)^2+(I40-I37)^2)^0.5 -> 768.3040916 | J41: Dist between Pt 1 and Pt 2 | P41: PI Sta | Q41: 32393.5 | T41: Middle | U41: 1909.82 | V41: =((U41-U40)*(V42-V40)/(U42-U40))+V40 -> 44.68126582
B42: 39775 | C42: 177157.4 | D42: 137382.4 | F42: 9.6 | G42: =CONVERT(F42,"m","ft") -> 31.49606299 | P42: Δ | Q42: 21.3 | T42: End | U42: 1540 | V42: 40
B43: 177157.4 | C43: 177914.3 | D43: 756.9 | L43: Project Cost | M43: 2956325 | P43: Rc | Q43: 1500
B44: 177914.3 | C44: 178514.3 | D44: 600 | F44: =CONVERT(G44,"ft","m") -> 6.096 | G44: 20 | L44: Yrs Inflation | M44: 2 | P44: Ls | Q44: 273
B45: 178514.3 | C45: 178899.9 | D45: 385.6 | J45: IDC % | K45: 10.41 | L45: CN | M45: =M43/((1+(K45/100))*(1.03)^M44*(1+(K46/100))) -> 2381022.237 | P45: TR | Q45: 78 | T45: Stopping Sight Distance
B46: 178899.9 | C46: 179090 | D46: 190.1 | J46: CE % | K46: 6 | L46: CE | M46: =M45*(K46/100) -> 142861.3342 | P46: Θs | Q46: =(Q44/Q43)*(90/PI()) -> 5.213915936 | T46: Design Speed (mph) | V46: 50
B47: 179090 | C47: 179145 | D47: 55 | G47: Quantities per Project | P47: p | Q47: =Q44*((0.0014544*Q46)-(1.582315*(Q46^3)*(10^-8))+(1.022426*(Q46^5)*(10^-13))) -> 2.06957941 | T47: Grade (%) | V47: -3.773
B48: 179145 | C48: 179335 | D48: 190 | G48: Project 1 | H48: Project 2 | I48: Total | J48: Unit Costs | K48: Project 1 | L48: Project 2 | P48: k | Q48: =Q44*(0.5-(5.076957*(Q46^2)*(10^-6))+(4.295915*(Q46^4)*(10^-11))) -> 136.4623301 | T48: SSD (ft) | V48: =(1.47*V46*2.5)+(V46^2)/(30*((11.2/32.2)+(V47/100))) -> 452.4839081
B49: 179335 | C49: 179530 | D49: 195 | G49: 1 | H49: 0 | I49: =G49+H49 -> 1 | J49: 2646285.5 | K49: =G49*J49 -> 2646285.5 | L49: =H49*J49 -> 0 | P49: Ts | Q49: =(Q43+Q47)*TAN(RADIANS(Q42/2))+Q48 -> 418.9239447
B50: 179530 | C50: 179948.5 | D50: =C50-B50 -> 418.5 | G50: 0 | H50: 1 | I50: 1 | J50: 436875.2 | K50: 0 | L50: 436875.2 | P50: Ec | Q50: =(Q43+Q47)*(1/(COS(RADIANS(Q42/2)))-1)+Q47 -> 28.39706395 | U50: K-Value for Crest Curve
B51: 179948.5 | C51: 181655 | D51: 1706.5 | G51: 492 | H51: 237 | I51: 729 | J51: 190.3 | K51: 93627.6 | L51: 45101.1 | P51: Δc | Q51: =Q42-2*Q46 -> 10.87216813 | U51: SSD (ft) | V51: 452
B52: 181655 | C52: 181921.6 | D52: 266.6 | G52: 236 | H52: 105 | I52: 341 | J52: 10.7 | K52: 2525.2 | L52: 1123.5 | P52: Lc | Q52: =(Q51/360)*2*PI()*Q43 -> 284.632696 | U52: K | V52: =V51^2/2158 -> 94.67284523
B53: 181921.6 | C53: 182720 | D53: 798.4 | G53: 272 | H53: 0 | I53: 272 | J53: 10.7 | K53: 2910.4 | L53: 0 | P53: TS Sta | Q53: =Q41-Q49 -> 31974.57606
B54: 182720 | C54: 182800 | D54: 80 | G54: 1658 | H54: 465 | I54: 2123 | J54: 7.8 | K54: 12932.4 | L54: 3627 | P54: SC Sta | Q54: =Q53+Q44 -> 32247.57606 | U54: K-Value for Sag Curve
B55: 182800 | C55: 186647 | D55: 3847 | G55: 401810 | H55: 1996 | I55: 403806 | J55: 2.3 | K55: 924163 | L55: 4590.8 | P55: CS Sta | Q55: =Q54+Q52 -> 32532.20875 | U55: SSD (ft) | V55: 460
B56: 186647 | C56: 187007 | D56: 360 | G56: 101.9 | H56: 0 | I56: 101.9 | J56: 910 | K56: 92729 | L56: 0 | P56: ST Sta | Q56: =Q55+Q44 -> 32805.20875 | U56: K | V56: =V55^2/(400+3.5*V55) -> 105.2736318
B57: 187007 | C57: 187638.3 | D57: 631.3 | G57: 2874.3 | H57: 661 | I57: 3535.3 | J57: 505 | K57: 1451521.5 | L57: 333805
B58: 187638.3 | C58: 187998.3 | D58: 360 | G58: 57 | H58: 3 | I58: 60 | J58: 2345 | K58: 133665 | L58: 7035 | Q58: Asymmetrical Vertical Curves
B59: 187998.3 | C59: 189251 | D59: 1252.7 | G59: 10 | H59: 0 | I59: 10 | J59: 51.15 | K59: 511.5 | L59: 0 | Q59: PGL Vertical Curve Elev. Calcs.
B60: 189251 | C60: 189549 | D60: 298 | G60: 0 | H60: 115 | I60: 115 | J60: 240 | K60: 0 | L60: 27600 | Q60: VPC Sta | R60: 14276.5
B61: 189549 | C61: 189722 | D61: 173 | G61: 30 | H61: 75.1 | I61: 105.1 | J61: 130 | K61: 3900 | L61: 9763 | Q61: VPC Elev | R61: 926.14
B62: 189722 | C62: 190236 | D62: 514 | G62: 116 | H62: 1188.6 | I62: 1304.6 | J62: 29.35 | K62: 3404.6 | L62: 34885.41 | Q62: G1 (%) | R62: -4.459
B63: 190236 | C63: 190780 | D63: 544 | G63: 230 | H63: 1090 | I63: 1320 | J63: 25.6 | K63: 5888 | L63: 27904 | Q63: G2 (%) | R63: 0.439 | S63: L1 | T63: 148
B64: 190780 | C64: 193060.96 | D64: 2280.96 | G64: 50 | H64: 0 | I64: 50 | J64: 14.3 | K64: 715 | L64: 0 | Q64: L | R64: =T63+T64 -> 323 | S64: L2 | T64: 175
B65: 193060.96 | C65: 201366 | D65: 8305.04 | G65: 2370 | H65: 1235 | I65: 3605 | J65: 71.75 | K65: 170047.5 | L65: 88611.25 | Q65: X Sta | R65: 14580
B66: 201366 | C66: 201440 | D66: 74 | G66: 6 | H66: 6 | I66: 12 | J66: 1375 | K66: 8250 | L66: 8250 | Q66: X | R66: =R65-R60 -> 303.5 | S66: @ SG
B67: 201440 | C67: 51202.43 | D67: -150237.57 | G67: 2 | H67: 3 | I67: 5 | J67: 2200 | K67: 4400 | L67: 6600 | P67: PGL | Q67: X Elev | R67: =(R66^2)*(T64/T63)*((R63-R62)/(200*R64))+(R62/100)*R66+R61 -> 920.8650321 | S67: =R67-S70 -> 920.5500321 | T67: from VPC to VPI
B68: 51202.43 | C68: 51501.27 | D68: =C68-B68 -> 298.84 | G68: 28 | H68: 10 | I68: 38 | J68: 10700 | K68: 299600 | L68: 107000 | P68: PGL | Q68: X Elev | R68: =((R64-R66)^2)*(T63/T64)*((R63-R62)/(200*R64))+(R62/100)*T63+(R66-T63)*(R63/100)+R61 -> 920.2477076 | S68: =R68-S70 -> 919.9327076 | T68: from VPI to VPT
B69: 51501.27 | C69: 51787.31 | D69: 286.04 | G69: 16 | H69: 0 | I69: 16 | J69: 11900 | K69: 190400 | L69: 0
B70: 51787.31 | C70: 51867.12 | D70: 79.81 | G70: 0.5 | H70: 0.5 | I70: 1 | J70: 37500 | K70: 18750 | L70: 18750 | R70: Section Depth | S70: 0.315
B71: 51867.12 | C71: 51966.14 | D71: 99.02 | G71: 487.8 | H71: 10 | I71: 497.8 | J71: 29.1 | K71: 14194.98 | L71: 291
B72: 51966.14 | C72: 177325.59 | D72: 125359.45 | G72: 1012 | H72: 22.2 | I72: 1034.2 | J72: 26.8 | K72: 27121.6 | L72: 594.96
B73: 177325.59 | C73: 177444.25 | D73: 118.66 | G73: 1672.5 | H73: 111.6 | I73: 1784.1 | J73: 24.4 | K73: 40809 | L73: 2723.04
B74: 177444.25 | C74: 178004.63 | D74: 560.38 | G74: 287 | H74: 9 | I74: 296 | J74: 29.7 | K74: 8523.9 | L74: 267.3 | P74: Shared Use Path SSD
B75: 178004.63 | C75: 178022.73 | D75: 18.1 | G75: 16 | H75: 1 | I75: 17 | J75: 300 | K75: 4800 | L75: 300 | Q75: V (mph) | R75: 18
B76: 178022.73 | C76: 179723.35 | D76: 1700.62 | G76: 644.1 | H76: 236 | I76: 880.1 | J76: 10.1 | K76: 6505.41 | L76: 2383.6 | Q76: Grade (%) | R76: 1.032
B77: 179723.35 | C77: 179773.85 | D77: 50.5 | G77: 87 | H77: 0 | I77: 87 | J77: 4.75 | K77: 413.25 | L77: 0 | Q77: SSD (ft) | R77: =(R75^2)/(30*(0.16+(R76/100)))+3.67*R75 -> 129.4700517
B78: 179773.85 | C78: 179862.18 | D78: 88.33 | G78: 5 | H78: 1 | I78: 6 | J78: 1100 | K78: 5500 | L78: 1100
B79: 179862.18 | C79: 179918.75 | D79: 56.57 | G79: 2 | H79: 0 | I79: 2 | J79: 1100 | K79: 2200 | L79: 0 | P79: Length of Path Crest Vertical Curve
B80: 179918.75 | C80: 180477.15 | D80: 558.4 | G80: 26 | H80: 0 | I80: 26 | J80: 53.5 | K80: 1391 | L80: 0 | Q80: SSD (ft) | R80: 129.47
B81: 180477.15 | C81: 37048.58 | D81: -143428.57 | G81: 36 | H81: 2 | I81: 38 | J81: 53.5 | K81: =G81*J81 -> 1926 | L81: =H81*J81 -> 107 | Q81: A (%) | R81: 6.03
B82: 37048.58 | C82: 37100 | D82: 51.42 | G82: 565 | H82: 0 | I82: 565 | J82: 27.35 | K82: 15452.75 | L82: 0 | Q82: L (ft) | R82: =(2*R80)-((200*4.5)/R81) -> 109.6862687 | S82: when S>L | T82: =IF(R80>R82,TRUE,FALSE) -> TRUE
B83: 37100 | C83: 38931 | D83: 1831 | G83: 382 | H83: 382 | I83: 764 | J83: 119 | K83: 45458 | L83: 45458 | Q83: L (ft) | R83: =(R81*(R80^2))/(100*2*4.5) -> 112.308622 | S83: when S<L | T83: =IF(R80<R83,TRUE,FALSE) -> FALSE
B84: 38931 | C84: 39195.08 | D84: 264.08 | G84: 12440 | H84: 434 | I84: 12874 | J84: 9.5 | K84: 118180 | L84: 4123
B85: 39195.08 | C85: 39297.48 | D85: 102.4 | G85: 15556 | H85: 53 | I85: 15609 | J85: 19 | K85: 295564 | L85: 1007
B86: 39297.48 | C86: 39386 | D86: 88.52 | G86: 1807 | H86: 0 | I86: 1807 | J86: 17.85 | K86: 32254.95 | L86: 0
B87: 39386 | C87: 39606.83 | D87: 220.83 | G87: 184800 | H87: 1056 | I87: 185856 | J87: 0.2 | K87: 36960 | L87: 211.2
B88: 39606.83 | C88: 39656.52 | D88: 49.69 | G88: 209747 | H88: 977 | I88: =G88+H88 -> 210724 | J88: 0.7 | K88: 146822.9 | L88: 683.9
B89: 39656.52 | C89: 39753.34 | D89: 96.82 | G89: 17363 | H89: 53 | I89: 17416 | J89: 6 | K89: 104178 | L89: 318
B90: 39753.34 | C90: 39813.48 | D90: 60.14 | G90: 0 | H90: 0 | I90: 0 | J90: 0 | K90: 0 | L90: 0
B91: 39813.48 | C91: 42515.8 | D91: 2702.32 | G91: 0 | H91: 0 | I91: 0 | J91: 0 | K91: 0 | L91: 0
G92: 0 | H92: 0 | I92: 0 | J92: 0 | K92: 0 | L92: 0
G93: 0 | H93: 0 | I93: 0 | J93: 0 | K93: 0 | L93: 0
G94: 0 | H94: 0 | I94: 0 | J94: 0 | K94: 0 | L94: 0
G95: 0 | H95: 0 | I95: 0 | J95: 0 | K95: 0 | L95: 0
B96: Weighted Average | G96: 0 | H96: 0 | I96: 0 | J96: 0 | K96: 0 | L96: 0
D97: =B97*C97 -> 0 | G97: 0 | H97: 0 | I97: 0 | J97: 0 | K97: 0 | L97: 0
D98: 0 | K98: =SUM(K49:K97) -> 6974481.94 | L98: =SUM(L49:L97) -> 1221089.26
D99: 0 | J99: Proportioned Costs | K99: =K98/(K98+L98) -> 0.8510062044 | L99: =L98/(K98+L98) -> 0.1489937956
D100: 0 | H100: Sum | J100: 735867 | K100: =K99*J100 -> 626227.3826 | L100: =L99*J100 -> 109639.6174
D101: 0 | H101: 9.75 | J101: 490000 | K101: =K99*J101 -> 416993.0402 | L101: =L99*J101 -> 73006.95983
D102: 0 | F102: 23.1 | G102: Avg | H102: 13.35 | J102: 0 | K102: =K99*J102 -> 0 | L102: =L99*J102 -> 0
D103: 0 | F103: 19.5 | G103: =(F102+F103)/2 -> 21.3 | H103: 0 | K103: =K98+SUM(K100:K102) -> 8017702.363 | L103: =L98+SUM(L100:L102) -> 1403735.837
D104: 0 | F104: =F102+F103 -> 42.6 | L104: =K103+L103 -> 9421438.2
D105: 0 | H105: =SUM(H101:H104) -> 23.1
D106: 0
D107: 0
D108: 0 | F108: Quantities per Project
D109: 0 | F109: Project 1 | G109: Project 2 | H109: Project 3 | I109: Total | J109: Unit Costs | K109: Project 1 | L109: Project 2 | M109: Project 3
D110: 0 | F110: 0 | G110: 0 | H110: 1 | I110: =SUM(F110:H110) -> 1 | J110: 12072.45 | K110: =F110*J110 -> 0 | L110: =G110*J110 -> 0 | M110: =H110*J110 -> 12072.45
D111: 0 | F111: 0 | G111: 0 | H111: 1 | I111: =SUM(F111:H111) -> 1 | J111: 47070 | K111: =F111*J111 -> 0 | L111: 0 | M111: 47070
D112: 0 | F112: 0 | G112: 0 | H112: 1 | I112: 1 | J112: 91430.6 | K112: 0 | L112: 0 | M112: 91430.6
D113: 0 | F113: 22536 | G113: 9589 | H113: 4426 | I113: 36551 | J113: 37.75 | K113: 850734 | L113: 361984.75 | M113: 167081.5
D114: 0 | F114: 316 | G114: 134 | H114: 62 | I114: 512 | J114: 217 | K114: 68572 | L114: 29078 | M114: 13454
D115: 0 | F115: 1306.5 | G115: 556.4 | H115: 256.4 | I115: 2119.3 | J115: 475 | K115: 620587.5 | L115: 264290 | M115: 121790
D116: 0 | F116: 8665 | G116: 3779 | H116: 2585 | I116: 15029 | J116: 3.7 | K116: 32060.5 | L116: 13982.3 | M116: 9564.5
D117: 0 | F117: 16339 | G117: 8451 | H117: 2488 | I117: 27278 | J117: 2.75 | K117: 44932.25 | L117: 23240.25 | M117: 6842
D118: 0 | F118: 385.9 | G118: 184.9 | H118: 105.4 | I118: 676.2 | J118: 633 | K118: 244274.7 | L118: 117041.7 | M118: 66718.2
D119: 0 | F119: 0 | G119: 0 | H119: 0.9 | I119: 0.9 | J119: 2000 | K119: 0 | L119: 0 | M119: 1800
D120: 0 | F120: 216937 | G120: 0 | H120: 59004 | I120: 275941 | J120: 0.81 | K120: 175718.97 | L120: 0 | M120: 47793.24
D121: 0 | F121: 0 | G121: 103439 | H121: 0 | I121: 103439 | J121: 0.69 | K121: 0 | L121: 71372.91 | M121: 0
D122: 0 | F122: 175382 | G122: 74451 | H122: 19267 | I122: =SUM(F122:H122) -> 269100 | J122: 1.4 | K122: 245534.8 | L122: 104231.4 | M122: 26973.8
D123: 0 | F123: 1.6 | G123: 0 | H123: 0 | I123: 1.6 | J123: 1500 | K123: 2400 | L123: 0 | M123: 0
D124: 0 | F124: 0 | G124: 1514 | H124: 1196.6 | I124: 2710.6 | J124: 9 | K124: 0 | L124: 13626 | M124: 10769.4
D125: 0 | F125: 0 | G125: 0 | H125: 172.9 | I125: 172.9 | J125: 350 | K125: 0 | L125: 0 | M125: 60515
D126: 0 | F126: 4 | G126: 0 | H126: 4 | I126: 8 | J126: 1050 | K126: 4200 | L126: 0 | M126: 4200
D127: 0 | F127: 6437.5 | G127: 0 | H127: 139.2 | I127: 6576.7 | J127: 38 | K127: 244625 | L127: 0 | M127: 5289.6
D128: =B128*C128 -> 0 | F128: 4 | G128: 0 | H128: 4 | I128: 8 | J128: 2620 | K128: 10480 | L128: 0 | M128: 10480
D129: 0 | F129: 6422.3 | G129: 0 | H129: 0 | I129: 6422.3 | J129: 3 | K129: 19266.9 | L129: 0 | M129: 0
D130: 0 | F130: 2 | G130: 0 | H130: 0 | I130: 2 | J130: 1400 | K130: 2800 | L130: 0 | M130: 0
D131: 0 | F131: 403.9 | G131: 341.9 | H131: 79 | I131: 824.8 | J131: 24 | K131: 9693.6 | L131: 8205.6 | M131: 1896
D132: 0 | F132: 182.6 | G132: 0 | H132: 0 | I132: 182.6 | J132: 19 | K132: 3469.4 | L132: 0 | M132: 0
D133: =B133*C133 -> 0 | F133: 153 | G133: 192.8 | H133: 214.8 | I133: 560.6 | J133: 22.75 | K133: 3480.75 | L133: 4386.2 | M133: 4886.7
D134: 0 | F134: 336.1 | G134: 420.2 | H134: 419.4 | I134: 1175.7 | J134: 21 | K134: 7058.1 | L134: 8824.2 | M134: 8807.4
D135: 0 | F135: 57 | G135: 56 | H135: 93 | I135: 206 | J135: 25 | K135: 1425 | L135: 1400 | M135: 2325
D136: 0 | F136: 14 | G136: 7 | H136: 4 | I136: 25 | J136: 300 | K136: 4200 | L136: 2100 | M136: 1200
D137: 0 | F137: 369 | G137: 0 | H137: 0 | I137: 369 | J137: 8 | K137: 2952 | L137: 0 | M137: 0
D138: 0 | F138: 308 | G138: 126 | H138: 120 | I138: 554 | J138: 2.5 | K138: 770 | L138: 315 | M138: 300
D139: 0 | F139: 859 | G139: 0 | H139: 0 | I139: 859 | J139: 8 | K139: 6872 | L139: 0 | M139: 0
D140: 0 | F140: 0 | G140: 0 | H140: 619 | I140: 619 | J140: 6.5 | K140: 0 | L140: 0 | M140: 4023.5
D141: 0 | F141: 170 | G141: 62 | H141: 42 | I141: 274 | J141: 10 | K141: 1700 | L141: 620 | M141: 420
D142: 0 | F142: 148 | G142: 78 | H142: 0 | I142: 226 | J142: 12 | K142: 1776 | L142: 936 | M142: 0
D143: 0 | F143: 0 | G143: 16 | H143: 0 | I143: 16 | J143: 15 | K143: 0 | L143: 240 | M143: 0
D144: 0 | F144: 2 | G144: 0 | H144: 0 | I144: 2 | J144: 975 | K144: 1950 | L144: 0 | M144: 0
D145: 0 | F145: 1 | G145: 0 | H145: 0 | I145: 1 | J145: 25357 | K145: 25357 | L145: 0 | M145: 0
D146: 0 | F146: 136 | G146: 14 | H146: 47 | I146: 197 | J146: 21 | K146: 2856 | L146: 294 | M146: 987
D147: 0 | F147: 37 | G147: 0 | H147: 14 | I147: 51 | J147: 28 | K147: 1036 | L147: 0 | M147: 392
B148: =SUM(B97:B147) -> 0 | D148: =SUM(D97:D147) -> 0 | E148: =D148/B148 ->  | F148: 34 | G148: 0 | H148: 10 | I148: 44 | J148: 23 | K148: 782 | L148: 0 | M148: 230
D149: =D148/9 -> 0 | F149: 0 | G149: 134 | H149: 58 | I149: 192 | J149: 175 | K149: 0 | L149: 23450 | M149: 10150
F150: 19 | G150: 54 | H150: 8 | I150: 81 | J150: 175 | K150: 3325 | L150: 9450 | M150: 1400
F151: 0 | G151: 9 | H151: 6 | I151: 15 | J151: 175 | K151: 0 | L151: 1575 | M151: 1050
F152: 12 | G152: 36 | H152: 6 | I152: =SUM(F152:H152) -> 54 | J152: 275 | K152: =F152*J152 -> 3300 | L152: =G152*J152 -> 9900 | M152: =H152*J152 -> 1650
F153: 0 | G153: 6 | H153: 4 | I153: 10 | J153: 275 | K153: 0 | L153: 1650 | M153: 1100
F154: 14.3 | G154: 14.3 | H154: 4.2 | I154: =SUM(F154:H154) -> 32.8 | J154: 400 | K154: =F154*J154 -> 5720 | L154: =G154*J154 -> 5720 | M154: =H154*J154 -> 1680
F155: 628 | G155: 258 | H155: 246 | I155: 1132 | J155: 26 | K155: 16328 | L155: 6708 | M155: 6396
F156: 459 | G156: 172 | H156: 164 | I156: 795 | J156: 47 | K156: 21573 | L156: 8084 | M156: 7708
F157: 483 | G157: 297 | H157: 148 | I157: 928 | J157: 26 | K157: 12558 | L157: 7722 | M157: 3848
F158: 331 | G158: 198 | H158: 100 | I158: 629 | J158: 47 | K158: 15557 | L158: 9306 | M158: 4700
F159: 0 | G159: 0 | H159: 0 | I159: 0 | J159: 0 | K159: 0 | L159: =G159*J159 -> 0 | M159: 0
K160: =SUM(K110:K159) -> 2719925.47 | L160: =SUM(L110:L159) -> 1109733.31 | M160: =SUM(M110:M159) -> 768993.89
J161: Proportioned Costs | K161: =K160/(SUM(K160:M160)) -> 0.5914613834 | L161: =L160/(SUM(K160:M160)) -> 0.241317053 | M161: =M160/(SUM(K160:M160)) -> 0.1672215636
J162: 1041890 | K162: =K161*J162 -> 616237.7008 | L162: =L161*J162 -> 251425.8243 | M162: =M161*J162 -> 174226.4749
J163: 893.7 | K163: =K161*J163 -> 528.5890383 | L163: =L161*J163 -> 215.6650502 | M163: =M161*J163 -> 149.4459114
J164: 0 | K164: =K161*J164 -> 0 | L164: =L161*J164 -> 0 | M164: =M161*J164 -> 0
K165: =K160+SUM(K162:K164) -> 3336691.76 | L165: =L160+SUM(L162:L164) -> 1361374.799 | M165: =M160+SUM(M162:M164) -> 943369.8108
M166: =SUM(K165:M165) -> 5641436.37
D172: Quantities per Project
D173: Project 1 | E173: Project 2 | F173: Project 3 | G173: Project 4 | H173: Total | I173: Unit Costs | J173: Project 1 | K173: Project 2 | L173: Project 3 | M173: Project 4
D174: 0 | E174: 0 | F174: 11839 | G174: 5099 | H174: =SUM(D174:G174) -> 16938 | I174: 3.25 | J174: =D174*I174 -> 0 | K174: =E174*I174 -> 0 | L174: =F174*I174 -> 38476.75 | M174: =G174*I174 -> 16571.75
D175: 0 | E175: 335 | F175: 0 | G175: 122.3 | H175: =SUM(D175:G175) -> 457.3 | I175: 560 | J175: 0 | K175: 187600 | L175: 0 | M175: 68488
D176: 252.2 | E176: 0 | F176: 321 | G176: 0 | H176: 573.2 | I176: 670 | J176: 168974 | K176: 0 | L176: 215070 | M176: 0
D177: 19138 | E177: 923 | F177: 4350 | G177: 26870 | H177: 51281 | I177: 2.8 | J177: 53586.4 | K177: 2584.4 | L177: 12180 | M177: 75236
D178: 7.2 | E178: 9.8 | F178: 0 | G178: 0 | H178: 17 | I178: 300 | J178: 2160 | K178: 2940 | L178: 0 | M178: 0
D179: 140567 | E179: 186478 | F179: 159349 | G179: 68072 | H179: 554466 | I179: 0.5 | J179: 70283.5 | K179: 93239 | L179: 79674.5 | M179: 34036
D180: 6.5 | E180: 9.8 | F180: 0 | G180: 0 | H180: 16.3 | I180: 930 | J180: 6045 | K180: 9114 | L180: 0 | M180: 0
D181: 13.1 | E181: 16.6 | F181: 12.2 | G181: 0 | H181: 41.9 | I181: 635 | J181: 8318.5 | K181: 10541 | L181: 7747 | M181: 0
D182: 2193 | E182: 458 | F182: 0 | G182: 0 | H182: 2651 | I182: 14 | J182: 30702 | K182: 6412 | L182: 0 | M182: 0
D183: 15 | E183: 0 | F183: 0 | G183: 0 | H183: 15 | I183: 265 | J183: 3975 | K183: 0 | L183: 0 | M183: 0
D184: 9 | E184: 1 | F184: 1 | G184: 0 | H184: =SUM(D184:G184) -> 11 | I184: 215 | J184: 1935 | K184: 215 | L184: 215 | M184: 0
D185: 5 | E185: 0 | F185: 0 | G185: 0 | H185: 5 | I185: 215 | J185: 1075 | K185: 0 | L185: 0 | M185: 0
D186: 10 | E186: 1 | F186: 2 | G186: 0 | H186: 13 | I186: 320 | J186: 3200 | K186: 320 | L186: 640 | M186: 0
D187: 7 | E187: 0 | F187: 0 | G187: 0 | H187: 7 | I187: 320 | J187: 2240 | K187: 0 | L187: 0 | M187: 0
D188: 266 | E188: 364 | F188: 305 | G188: 163 | H188: 1098 | I188: 31 | J188: 8246 | K188: 11284 | L188: 9455 | M188: 5053
D189: 354 | E189: 485 | F189: 407 | G189: 218 | H189: 1464 | I189: 58.5 | J189: 20709 | K189: 28372.5 | L189: 23809.5 | M189: 12753
D190: 116 | E190: 118 | F190: 149 | G190: 30 | H190: 413 | I190: 31 | J190: 3596 | K190: 3658 | L190: 4619 | M190: 930
D191: 155 | E191: 158 | F191: 199 | G191: 40 | H191: 552 | I191: 58.5 | J191: 9067.5 | K191: 9243 | L191: 11641.5 | M191: 2340
D192: 0 | E192: 0 | F192: 0 | G192: 0 | H192: 0 | I192: 0 | J192: 0 | K192: 0 | L192: 0 | M192: 0
D193: 0 | E193: 0 | F193: 0 | G193: 0 | H193: 0 | I193: 0 | J193: 0 | K193: 0 | L193: 0 | M193: 0
D194: 0 | E194: 0 | F194: 0 | G194: 0 | H194: 0 | I194: 0 | J194: 0 | K194: 0 | L194: 0 | M194: 0
D195: 0 | E195: 0 | F195: 0 | G195: 0 | H195: 0 | I195: 0 | J195: 0 | K195: 0 | L195: 0 | M195: 0
D196: 0 | E196: 0 | F196: 0 | G196: 0 | H196: 0 | I196: 0 | J196: 0 | K196: 0 | L196: 0 | M196: 0
D197: 0 | E197: 0 | F197: 0 | G197: 0 | H197: 0 | I197: 0 | J197: 0 | K197: 0 | L197: 0 | M197: 0
D198: 0 | E198: 0 | F198: 0 | G198: 0 | H198: 0 | I198: 0 | J198: 0 | K198: 0 | L198: 0 | M198: 0
D199: 0 | E199: 0 | F199: 0 | G199: 0 | H199: 0 | I199: 0 | J199: 0 | K199: 0 | L199: 0 | M199: 0
D200: 0 | E200: 0 | F200: 0 | G200: 0 | H200: 0 | I200: 0 | J200: 0 | K200: 0 | L200: 0 | M200: 0
D201: 0 | E201: 0 | F201: 0 | G201: 0 | H201: 0 | I201: 0 | J201: 0 | K201: 0 | L201: 0 | M201: 0
D202: 0 | E202: 0 | F202: 0 | G202: 0 | H202: 0 | I202: 0 | J202: 0 | K202: 0 | L202: 0 | M202: 0
D203: 0 | E203: 0 | F203: 0 | G203: 0 | H203: 0 | I203: 0 | J203: 0 | K203: 0 | L203: 0 | M203: 0
D204: 0 | E204: 0 | F204: 0 | G204: 0 | H204: 0 | I204: 0 | J204: 0 | K204: 0 | L204: 0 | M204: 0
D205: 0 | E205: 0 | F205: 0 | G205: 0 | H205: 0 | I205: 0 | J205: 0 | K205: 0 | L205: 0 | M205: 0
... 36 more rows
